[Event "Betsys MČR v online bleskovém šachu 2021"]
[Site "Chess.com"]
[Date "2021.04.17"]
[Round "3"]
[White "hoacin"]
[Black "milanpetras"]
[Result "1-0"]
[WhiteElo "2486"]
[BlackElo "1830"]
[TimeControl "180+1"]
[EndTime "9:26:27 PDT"]
[Termination "Uživatel hoacin zvítězil na čas"]

1. e4 {[%clk 0:03:00.9]} 1... e6 {[%clk 0:02:58.9]} 2. d4 {[%clk 0:03:00.8]}
2... d5 {[%clk 0:02:59.3]} 3. Nd2 {[%clk 0:03:00.9]} 3... Nf6 {[%clk 0:02:54.2]}
4. e5 {[%clk 0:03:00.3]} 4... Nfd7 {[%clk 0:02:54.5]} 5. f4 {[%clk 0:02:59]}
5... c5 {[%clk 0:02:53.5]} 6. c3 {[%clk 0:02:59.1]} 6... Nc6 {[%clk 0:02:53]} 7.
Ndf3 {[%clk 0:02:58.8]} 7... f6 {[%clk 0:02:45.9]} 8. Bd3 {[%clk 0:02:56.4]}
8... cxd4 {[%clk 0:02:42.5]} 9. cxd4 {[%clk 0:02:56]} 9... fxe5 {[%clk
0:02:42.3]} 10. dxe5 {[%clk 0:02:52.9]} 10... Nc5 {[%clk 0:02:21.9]} 11. Bb1
{[%clk 0:02:48.7]} 11... Be7 {[%clk 0:02:19.5]} 12. Nh3 {[%clk 0:02:47.5]} 12...
Qa5+ {[%clk 0:02:12.9]} 13. Bd2 {[%clk 0:02:45.6]} 13... Qb6 {[%clk 0:02:12.6]}
14. O-O {[%clk 0:02:33]} 14... Nb3+ {[%clk 0:02:03.1]} 15. Kh1 {[%clk
0:02:31.3]} 15... Nxa1 {[%clk 0:02:03]} 16. Nfg5 {[%clk 0:02:30]} 16... Qxb2
{[%clk 0:01:41.9]} 17. Qh5+ {[%clk 0:02:24.4]} 17... g6 {[%clk 0:01:39.5]} 18.
Bxg6+ {[%clk 0:02:21.5]} 18... Kd7 {[%clk 0:01:31.2]} 19. Be3 {[%clk 0:02:08.5]}
19... Kc7 {[%clk 0:01:15.2]} 20. Bf7 {[%clk 0:01:50]} 20... d4 {[%clk
0:00:54.6]} 21. Bg1 {[%clk 0:01:49.2]} 21... Qxa2 {[%clk 0:00:50.1]} 22. f5
{[%clk 0:01:48]} 22... Bd7 {[%clk 0:00:47.2]} 23. Nxe6+ {[%clk 0:01:46.5]} 23...
Bxe6 {[%clk 0:00:41.6]} 24. Bxe6 {[%clk 0:01:46.2]} 24... Qa5 {[%clk 0:00:32.4]}
25. f6 {[%clk 0:01:44.9]} 25... Bb4 {[%clk 0:00:21.1]} 26. Qf7+ {[%clk
0:01:38.5]} 26... Kb6 {[%clk 0:00:19.7]} 27. Bd7 {[%clk 0:01:36.5]} 27... a6
{[%clk 0:00:19.1]} 28. Bxc6 {[%clk 0:01:35.2]} 28... bxc6 {[%clk 0:00:18.2]} 29.
Bxd4+ {[%clk 0:01:34.1]} 29... Kb5 {[%clk 0:00:16.9]} 30. e6 {[%clk 0:01:30.1]}
30... Rhf8 {[%clk 0:00:12.3]} 31. Qh5+ {[%clk 0:01:29.3]} 31... Kc4 {[%clk
0:00:09.4]} 32. Qh4 {[%clk 0:01:26.7]} 32... Kb5 {[%clk 0:00:07.5]} 33. Rxa1
{[%clk 0:01:25.7]} 33... Qc7 {[%clk 0:00:05.1]} 34. Qg5+ {[%clk 0:01:24.8]}
34... c5 {[%clk 0:00:04.7]} 35. Be5 {[%clk 0:01:22.9]} 35... Qc6 {[%clk
0:00:04.6]} 36. e7 {[%clk 0:01:21.9]} 36... Rg8 {[%clk 0:00:04.6]} 37. f7 {[%clk
0:01:12.3]} 37... Rxg5 {[%clk 0:00:02]} 38. Nxg5 {[%clk 0:01:12.2]} 1-0

[Event "Betsys MČR v online bleskovém šachu 2021"]
[Site "Chess.com"]
[Date "2021.04.17"]
[Round "3"]
[White "Tobish"]
[Black "Eliska0107"]
[Result "0-1"]
[WhiteElo "1662"]
[BlackElo "2022"]
[TimeControl "180+1"]
[EndTime "9:26:27 PDT"]
[Termination "Uživatel Eliska0107 zvítězil na čas"]

1. e4 {[%clk 0:03:00.9]} 1... d6 {[%clk 0:02:59.5]} 2. d4 {[%clk 0:02:59.9]}
2... Nf6 {[%clk 0:02:59.5]} 3. Bd3 {[%clk 0:02:57.2]} 3... e5 {[%clk 0:02:58]}
4. dxe5 {[%clk 0:02:44.7]} 4... dxe5 {[%clk 0:02:57.4]} 5. Nf3 {[%clk
0:02:44.4]} 5... Nbd7 {[%clk 0:02:55.9]} 6. O-O {[%clk 0:02:44.3]} 6... c6
{[%clk 0:02:55.6]} 7. Nc3 {[%clk 0:02:41.5]} 7... Qc7 {[%clk 0:02:55.4]} 8. Be3
{[%clk 0:02:30.3]} 8... Be7 {[%clk 0:02:55]} 9. h3 {[%clk 0:02:24.1]} 9... O-O
{[%clk 0:02:54.8]} 10. Qe2 {[%clk 0:02:21.9]} 10... b5 {[%clk 0:02:54.2]} 11. a3
{[%clk 0:02:21.4]} 11... a6 {[%clk 0:02:53.8]} 12. Na2 {[%clk 0:02:15]} 12...
Nc5 {[%clk 0:02:53.2]} 13. Nc3 {[%clk 0:02:03]} 13... Ne6 {[%clk 0:02:48.2]} 14.
b4 {[%clk 0:02:00.3]} 14... Nh5 {[%clk 0:02:42.6]} 15. Rfd1 {[%clk 0:01:35.5]}
15... Nhf4 {[%clk 0:02:40.5]} 16. Qf1 {[%clk 0:01:35.3]} 16... Bf6 {[%clk
0:02:32.2]} 17. Ne2 {[%clk 0:01:16.3]} 17... Re8 {[%clk 0:01:58]} 18. Ng3 {[%clk
0:00:56.7]} 18... g6 {[%clk 0:01:54.1]} 19. c4 {[%clk 0:00:45.1]} 19... Nd4
{[%clk 0:01:27.2]} 20. Nxd4 {[%clk 0:00:21.2]} 20... exd4 {[%clk 0:01:26.6]} 21.
Bxf4 {[%clk 0:00:19.9]} 21... Qxf4 {[%clk 0:01:25.9]} 22. Re1 {[%clk 0:00:16.4]}
22... Be5 {[%clk 0:01:21.9]} 23. Qe2 {[%clk 0:00:13.5]} 23... Be6 {[%clk
0:01:09]} 24. cxb5 {[%clk 0:00:12.5]} 24... cxb5 {[%clk 0:01:08]} 25. Rac1
{[%clk 0:00:11.8]} 25... Rec8 {[%clk 0:01:07.4]} 26. Rc2 {[%clk 0:00:10]} 26...
Rxc2 {[%clk 0:01:06.5]} 27. Bxc2 {[%clk 0:00:09.3]} 27... Rc8 {[%clk 0:01:05]}
28. Bd3 {[%clk 0:00:07.6]} 28... Rc3 {[%clk 0:01:03.9]} 29. Rd1 {[%clk 0:00:07]}
29... Bc4 {[%clk 0:00:59.4]} 30. Bxc4 {[%clk 0:00:06.6]} 30... bxc4 {[%clk
0:00:59.1]} 31. a4 {[%clk 0:00:05.5]} 31... d3 {[%clk 0:00:59]} 32. Qd2 {[%clk
0:00:04]} 32... Qf6 {[%clk 0:00:54.6]} 0-1

[Event "Betsys MČR v online bleskovém šachu 2021"]
[Site "Chess.com"]
[Date "2021.04.17"]
[Round "3"]
[White "krajic001"]
[Black "Joanna23W"]
[Result "0-1"]
[WhiteElo "1837"]
[BlackElo "2683"]
[TimeControl "180+1"]
[EndTime "9:26:28 PDT"]
[Termination "Uživatel Joanna23W zvítězil po vzdání soupeře"]

1. e4 {[%clk 0:03:00.9]} 1... c5 {[%clk 0:02:59.7]} 2. Nf3 {[%clk 0:02:59]} 2...
Nc6 {[%clk 0:02:59.3]} 3. c3 {[%clk 0:02:57.1]} 3... d5 {[%clk 0:02:48.9]} 4.
exd5 {[%clk 0:02:48.2]} 4... Qxd5 {[%clk 0:02:48.8]} 5. Be2 {[%clk 0:02:45.7]}
5... e5 {[%clk 0:02:47.2]} 6. O-O {[%clk 0:02:42]} 6... Nf6 {[%clk 0:02:47]} 7.
Na3 {[%clk 0:02:35.3]} 7... Be7 {[%clk 0:02:30.7]} 8. Bc4 {[%clk 0:02:30.8]}
8... Qd7 {[%clk 0:02:23.8]} 9. Ng5 {[%clk 0:02:28.9]} 9... O-O {[%clk 0:02:23]}
10. Qc2 {[%clk 0:02:26.1]} 10... h6 {[%clk 0:02:06.6]} 11. Ne4 {[%clk
0:02:21.4]} 11... Nxe4 {[%clk 0:01:57.7]} 12. Qxe4 {[%clk 0:02:19.8]} 12... Kh8
{[%clk 0:01:57.8]} 13. f4 {[%clk 0:01:48.3]} 13... f5 {[%clk 0:01:56.9]} 14. Qf3
{[%clk 0:01:47.4]} 14... e4 {[%clk 0:01:56.7]} 15. Qh5 {[%clk 0:01:40]} 15...
Bf6 {[%clk 0:01:51.5]} 16. Nc2 {[%clk 0:01:36.3]} 16... a6 {[%clk 0:01:46.6]}
17. Ne3 {[%clk 0:01:33.1]} 17... b5 {[%clk 0:01:45.5]} 18. Bd5 {[%clk
0:01:23.5]} 18... Ra7 {[%clk 0:01:34.2]} 19. Bxc6 {[%clk 0:01:20.6]} 19... Qxc6
{[%clk 0:01:30.5]} 20. Nxf5 {[%clk 0:01:19]} 20... Bxf5 {[%clk 0:01:09.6]} 21.
Qxf5 {[%clk 0:01:17.1]} 21... Raf7 {[%clk 0:01:09]} 22. Qg4 {[%clk 0:01:01.2]}
22... c4 {[%clk 0:00:57.5]} 23. b3 {[%clk 0:00:45.3]} 23... Bd8 {[%clk 0:00:56]}
24. bxc4 {[%clk 0:00:35.6]} 24... Qc5+ {[%clk 0:00:51.4]} 25. Kh1 {[%clk
0:00:22.7]} 25... bxc4 {[%clk 0:00:50.4]} 26. a4 {[%clk 0:00:19.7]} 26... Qc7
{[%clk 0:00:45.6]} 27. Ba3 {[%clk 0:00:13.9]} 27... Rxf4 {[%clk 0:00:43.1]} 28.
Qg3 {[%clk 0:00:11.1]} 28... Rxf1+ {[%clk 0:00:38.9]} 0-1

[Event "Betsys MČR v online bleskovém šachu 2021"]
[Site "Chess.com"]
[Date "2021.04.17"]
[Round "3"]
[White "sajmon8"]
[Black "Sorcercream"]
[Result "1-0"]
[WhiteElo "1593"]
[BlackElo "1127"]
[TimeControl "180+1"]
[EndTime "9:26:28 PDT"]
[Termination "Uživatel sajmon8 zvítězil na čas"]

1. e4 {[%clk 0:03:00.9]} 1... e5 {[%clk 0:02:57.4]} 2. Nf3 {[%clk 0:03:00.1]}
2... Nc6 {[%clk 0:02:57.4]} 3. Bb5 {[%clk 0:02:59.3]} 3... Nf6 {[%clk
0:02:55.8]} 4. Nc3 {[%clk 0:02:58.8]} 4... a6 {[%clk 0:02:45.8]} 5. Bxc6 {[%clk
0:02:58.1]} 5... dxc6 {[%clk 0:02:38.2]} 6. O-O {[%clk 0:02:56.3]} 6... Bd6
{[%clk 0:02:30.7]} 7. d4 {[%clk 0:02:54.6]} 7... exd4 {[%clk 0:02:25.3]} 8. Qxd4
{[%clk 0:02:36.9]} 8... Be7 {[%clk 0:02:15.2]} 9. Qxd8+ {[%clk 0:02:32.8]} 9...
Bxd8 {[%clk 0:02:14.8]} 10. Bf4 {[%clk 0:02:33.1]} 10... O-O {[%clk 0:02:13.3]}
11. Rad1 {[%clk 0:02:32.1]} 11... Bg4 {[%clk 0:02:11.3]} 12. Rfe1 {[%clk
0:02:27.9]} 12... Bxf3 {[%clk 0:02:06.3]} 13. gxf3 {[%clk 0:02:28.8]} 13... Nh5
{[%clk 0:02:04.6]} 14. Bg3 {[%clk 0:02:27.9]} 14... Bf6 {[%clk 0:02:00.6]} 15.
Rd3 {[%clk 0:02:23.1]} 15... Nxg3 {[%clk 0:01:57.9]} 16. fxg3 {[%clk 0:02:21.8]}
16... Rad8 {[%clk 0:01:56.9]} 17. Red1 {[%clk 0:02:20.9]} 17... h6 {[%clk
0:01:44.8]} 18. Kf2 {[%clk 0:02:19.6]} 18... Rxd3 {[%clk 0:01:43.6]} 19. Rxd3
{[%clk 0:02:18.6]} 19... Rd8 {[%clk 0:01:43.3]} 20. Rxd8+ {[%clk 0:02:18.1]}
20... Bxd8 {[%clk 0:01:42.6]} 21. b3 {[%clk 0:02:18.2]} 21... Bf6 {[%clk
0:01:42.1]} 22. Ne2 {[%clk 0:02:17.9]} 22... g5 {[%clk 0:01:39.9]} 23. Ke3
{[%clk 0:02:17.4]} 23... Kf8 {[%clk 0:01:34.8]} 24. f4 {[%clk 0:02:04.6]} 24...
Ke7 {[%clk 0:01:29.5]} 25. Ng1 {[%clk 0:02:00.8]} 25... a5 {[%clk 0:01:17]} 26.
Nf3 {[%clk 0:01:57.6]} 26... c5 {[%clk 0:01:06.8]} 27. Kd3 {[%clk 0:01:50.8]}
27... b5 {[%clk 0:01:00.3]} 28. c4 {[%clk 0:01:48.6]} 28... c6 {[%clk
0:00:55.2]} 29. e5 {[%clk 0:01:46.4]} 29... Bg7 {[%clk 0:00:42]} 30. Ke4 {[%clk
0:01:46.2]} 30... Ke6 {[%clk 0:00:40.2]} 31. fxg5 {[%clk 0:01:42.3]} 31... hxg5
{[%clk 0:00:31.1]} 32. Nxg5+ {[%clk 0:01:41.5]} 32... Ke7 {[%clk 0:00:24.2]} 33.
Kf5 {[%clk 0:01:38.8]} 33... a4 {[%clk 0:00:15.9]} 34. Ne4 {[%clk 0:01:33.8]}
34... axb3 {[%clk 0:00:13]} 35. axb3 {[%clk 0:01:32.1]} 35... bxc4 {[%clk
0:00:11.7]} 36. bxc4 {[%clk 0:01:31.5]} 36... f6 {[%clk 0:00:09.9]} 37. exf6+
{[%clk 0:01:24]} 37... Bxf6 {[%clk 0:00:10.8]} 38. Nxf6 {[%clk 0:01:23.8]} 38...
Kd6 {[%clk 0:00:10.8]} 39. h4 {[%clk 0:01:21.9]} 39... Ke7 {[%clk 0:00:10.5]}
40. h5 {[%clk 0:01:21.3]} 40... Kf7 {[%clk 0:00:10]} 41. h6 {[%clk 0:01:21.1]}
41... Kf8 {[%clk 0:00:02.4]} 42. g4 {[%clk 0:01:18.7]} 42... Kf7 {[%clk
0:00:02]} 43. g5 {[%clk 0:01:19.3]} 43... Kf8 {[%clk 0:00:02]} 44. g6 {[%clk
0:01:19.7]} 1-0

[Event "Betsys MČR v online bleskovém šachu 2021"]
[Site "Chess.com"]
[Date "2021.04.17"]
[Round "3"]
[White "feela1"]
[Black "kaprasov"]
[Result "0-1"]
[WhiteElo "1495"]
[BlackElo "1892"]
[TimeControl "180+1"]
[EndTime "9:26:32 PDT"]
[Termination "Uživatel kaprasov zvítězil na čas"]

1. e4 {[%clk 0:03:00.9]} 1... c5 {[%clk 0:02:58.9]} 2. Nf3 {[%clk 0:03:00.1]}
2... d6 {[%clk 0:02:59.1]} 3. Bb5+ {[%clk 0:02:55.4]} 3... Nd7 {[%clk
0:02:58.3]} 4. Nc3 {[%clk 0:02:53]} 4... a6 {[%clk 0:02:57.9]} 5. Ba4 {[%clk
0:02:51.5]} 5... b5 {[%clk 0:02:57.5]} 6. Nxb5 {[%clk 0:02:46.7]} 6... axb5
{[%clk 0:02:56.8]} 7. Bxb5 {[%clk 0:02:46.3]} 7... Qa5 {[%clk 0:02:56.8]} 8. a4
{[%clk 0:02:41.2]} 8... Nf6 {[%clk 0:02:50.2]} 9. Qe2 {[%clk 0:02:38.3]} 9...
Ba6 {[%clk 0:02:47.5]} 10. Bxa6 {[%clk 0:02:31.4]} 10... Qxa6 {[%clk 0:02:48.4]}
11. d3 {[%clk 0:02:26.1]} 11... e5 {[%clk 0:02:45.8]} 12. O-O {[%clk 0:02:25]}
12... Be7 {[%clk 0:02:45.3]} 13. b3 {[%clk 0:02:22.3]} 13... O-O {[%clk
0:02:44.6]} 14. Ng5 {[%clk 0:02:18.5]} 14... h6 {[%clk 0:02:43.9]} 15. Nf3
{[%clk 0:02:10.9]} 15... Nh7 {[%clk 0:02:42]} 16. Bd2 {[%clk 0:02:00.5]} 16...
f5 {[%clk 0:02:41.4]} 17. exf5 {[%clk 0:01:51]} 17... Rxf5 {[%clk 0:02:39.1]}
18. h3 {[%clk 0:01:36.5]} 18... Raf8 {[%clk 0:02:38.1]} 19. Nh2 {[%clk
0:01:35.8]} 19... Bg5 {[%clk 0:02:23.2]} 20. Bxg5 {[%clk 0:01:29.4]} 20... Nxg5
{[%clk 0:02:23.9]} 21. Qg4 {[%clk 0:01:24]} 21... Qb7 {[%clk 0:02:12]} 22. f3
{[%clk 0:01:14]} 22... Rf4 {[%clk 0:02:04.3]} 23. Qg3 {[%clk 0:01:10.8]} 23...
Nf6 {[%clk 0:02:04]} 24. Qf2 {[%clk 0:01:03.7]} 24... Nd5 {[%clk 0:01:50.2]} 25.
a5 {[%clk 0:01:00.3]} 25... Nb4 {[%clk 0:01:42.7]} 26. Rfd1 {[%clk 0:00:44.1]}
26... R8f6 {[%clk 0:01:23]} 27. Ng4 {[%clk 0:00:38.1]} 27... Rxg4 {[%clk
0:01:02.9]} 28. hxg4 {[%clk 0:00:36.3]} 28... Rxf3 {[%clk 0:01:02.7]} 29. gxf3
{[%clk 0:00:31.6]} 29... Nh3+ {[%clk 0:01:02.3]} 30. Kg2 {[%clk 0:00:11.9]}
30... Nxf2 {[%clk 0:01:03.2]} 31. Kxf2 {[%clk 0:00:11.6]} 31... Nxc2 {[%clk
0:01:02.3]} 32. Ra2 {[%clk 0:00:10.1]} 32... Nd4 {[%clk 0:01:01.7]} 33. a6
{[%clk 0:00:09.1]} 33... Qa7 {[%clk 0:01:00.2]} 34. Rb1 {[%clk 0:00:07.2]} 34...
Nc6 {[%clk 0:00:58.1]} 35. Kg3 {[%clk 0:00:04.1]} 35... Nb4 {[%clk 0:00:58]} 0-1

[Event "Betsys MČR v online bleskovém šachu 2021"]
[Site "Chess.com"]
[Date "2021.04.17"]
[Round "3"]
[White "Akdub"]
[Black "masodj"]
[Result "1-0"]
[WhiteElo "2095"]
[BlackElo "1731"]
[TimeControl "180+1"]
[EndTime "9:26:37 PDT"]
[Termination "Uživatel Akdub zvítězil matem"]

1. e4 {[%clk 0:03:00.9]} 1... c5 {[%clk 0:02:58.6]} 2. c3 {[%clk 0:02:57.5]}
2... Nc6 {[%clk 0:02:57.5]} 3. d4 {[%clk 0:02:50.2]} 3... cxd4 {[%clk
0:02:57.2]} 4. cxd4 {[%clk 0:02:49.7]} 4... d6 {[%clk 0:02:57.1]} 5. Nc3 {[%clk
0:02:48.7]} 5... g6 {[%clk 0:02:56.9]} 6. Nf3 {[%clk 0:02:48.3]} 6... Bg7 {[%clk
0:02:57.1]} 7. Be3 {[%clk 0:02:46.8]} 7... Nf6 {[%clk 0:02:55.5]} 8. h3 {[%clk
0:02:45.7]} 8... O-O {[%clk 0:02:54.8]} 9. Bc4 {[%clk 0:02:43.5]} 9... Qc7
{[%clk 0:02:37.6]} 10. O-O {[%clk 0:02:19.8]} 10... a6 {[%clk 0:02:33.3]} 11. a3
{[%clk 0:02:16.7]} 11... Bd7 {[%clk 0:02:32.3]} 12. Rc1 {[%clk 0:02:14.8]} 12...
Rac8 {[%clk 0:02:31.9]} 13. Ba2 {[%clk 0:02:07.1]} 13... Qa5 {[%clk 0:02:25.8]}
14. Re1 {[%clk 0:01:56.2]} 14... Qh5 {[%clk 0:02:23.5]} 15. b4 {[%clk 0:01:47]}
15... Bxh3 {[%clk 0:02:09.4]} 16. gxh3 {[%clk 0:01:44.1]} 16... Qxh3 {[%clk
0:02:10]} 17. Nh2 {[%clk 0:01:41.7]} 17... h5 {[%clk 0:01:33.2]} 18. Qf3 {[%clk
0:01:37.1]} 18... Qd7 {[%clk 0:01:32.2]} 19. Red1 {[%clk 0:01:21.7]} 19... Ng4
{[%clk 0:01:24.1]} 20. Nxg4 {[%clk 0:01:19.1]} 20... hxg4 {[%clk 0:01:24]} 21.
Qg3 {[%clk 0:01:18]} 21... Bf6 {[%clk 0:01:10.6]} 22. Nd5 {[%clk 0:01:16]} 22...
Kg7 {[%clk 0:01:07.3]} 23. Nb6 {[%clk 0:01:13.7]} 23... Qc7 {[%clk 0:01:05]} 24.
Nxc8 {[%clk 0:01:12.9]} 24... Qxc8 {[%clk 0:01:05.3]} 25. d5 {[%clk 0:01:06.7]}
25... Be5 {[%clk 0:00:58.7]} 26. Qg2 {[%clk 0:01:05.5]} 26... Rh8 {[%clk
0:00:55.7]} 27. dxc6 {[%clk 0:01:01.6]} 27... Rh2 {[%clk 0:00:54]} 28. Qxh2
{[%clk 0:01:01.1]} 28... Bxh2+ {[%clk 0:00:53.3]} 29. Kxh2 {[%clk 0:01:01]}
29... Qh8+ {[%clk 0:00:51]} 30. Kg2 {[%clk 0:01:00.4]} 30... bxc6 {[%clk
0:00:49.7]} 31. Bf4 {[%clk 0:00:49.4]} 31... Qh3+ {[%clk 0:00:48.1]} 32. Kg1
{[%clk 0:00:48.9]} 32... e5 {[%clk 0:00:44.9]} 33. Bg3 {[%clk 0:00:48.3]} 33...
f5 {[%clk 0:00:39.2]} 34. exf5 {[%clk 0:00:41.3]} 34... gxf5 {[%clk 0:00:39.2]}
35. Rxd6 {[%clk 0:00:39.3]} 35... f4 {[%clk 0:00:38.8]} 36. Rd7+ {[%clk
0:00:37.5]} 36... Kf6 {[%clk 0:00:36.3]} 37. Rxc6+ {[%clk 0:00:35.3]} 37... Kf5
{[%clk 0:00:33.9]} 38. Bb1+ {[%clk 0:00:34.3]} 38... e4 {[%clk 0:00:33.2]} 39.
Rd5# {[%clk 0:00:33.1]} 1-0

[Event "Betsys MČR v online bleskovém šachu 2021"]
[Site "Chess.com"]
[Date "2021.04.17"]
[Round "3"]
[White "JIDEMONI"]
[Black "povrlak60"]
[Result "1-0"]
[WhiteElo "1902"]
[BlackElo "1512"]
[TimeControl "180+1"]
[EndTime "9:26:37 PDT"]
[Termination "Uživatel JIDEMONI zvítězil po vzdání soupeře"]

1. d4 {[%clk 0:03:00.9]} 1... Nf6 {[%clk 0:02:59]} 2. Nf3 {[%clk 0:03:00.6]}
2... g6 {[%clk 0:02:58.6]} 3. Nc3 {[%clk 0:02:58.8]} 3... Bg7 {[%clk 0:02:58.2]}
4. e4 {[%clk 0:02:58.1]} 4... d6 {[%clk 0:02:57.2]} 5. Be2 {[%clk 0:02:57.1]}
5... O-O {[%clk 0:02:56.8]} 6. O-O {[%clk 0:02:56.3]} 6... Bg4 {[%clk
0:02:55.1]} 7. h3 {[%clk 0:02:54.8]} 7... Bxf3 {[%clk 0:02:54]} 8. Bxf3 {[%clk
0:02:54.7]} 8... c6 {[%clk 0:02:54]} 9. Be3 {[%clk 0:02:53.4]} 9... Nbd7 {[%clk
0:02:53.3]} 10. Qd2 {[%clk 0:02:53.4]} 10... e5 {[%clk 0:02:52.2]} 11. Rad1
{[%clk 0:02:48.9]} 11... Qc7 {[%clk 0:02:50.5]} 12. Bh6 {[%clk 0:02:47.3]} 12...
Rfe8 {[%clk 0:02:30.2]} 13. Bxg7 {[%clk 0:02:44.9]} 13... Kxg7 {[%clk
0:02:30.2]} 14. Rfe1 {[%clk 0:02:41.4]} 14... Rad8 {[%clk 0:02:27.7]} 15. g3
{[%clk 0:02:40]} 15... Nf8 {[%clk 0:02:21.5]} 16. dxe5 {[%clk 0:02:35.1]} 16...
dxe5 {[%clk 0:02:19.9]} 17. Qe3 {[%clk 0:02:34.8]} 17... b6 {[%clk 0:02:10.9]}
18. Bg2 {[%clk 0:02:30.5]} 18... Ne6 {[%clk 0:02:08.2]} 19. Ne2 {[%clk
0:02:27.3]} 19... c5 {[%clk 0:01:58.6]} 20. c3 {[%clk 0:02:25.8]} 20... Rxd1
{[%clk 0:01:36.5]} 21. Rxd1 {[%clk 0:02:25.2]} 21... Rd8 {[%clk 0:01:36.2]} 22.
Rd3 {[%clk 0:02:19]} 22... Rxd3 {[%clk 0:01:34.5]} 23. Qxd3 {[%clk 0:02:19.9]}
23... Qd7 {[%clk 0:01:32.6]} 24. Qxd7 {[%clk 0:02:15.9]} 24... Nxd7 {[%clk
0:01:31.4]} 25. f3 {[%clk 0:02:16.4]} 25... c4 {[%clk 0:01:24.5]} 26. Kf2 {[%clk
0:02:12.5]} 26... Ndc5 {[%clk 0:01:24.1]} 27. Nc1 {[%clk 0:02:12.3]} 27... Kf8
{[%clk 0:01:19.9]} 28. Ke3 {[%clk 0:02:12]} 28... Ke7 {[%clk 0:01:19.4]} 29. Bf1
{[%clk 0:02:11.8]} 29... b5 {[%clk 0:01:17.5]} 30. b4 {[%clk 0:02:07.2]} 30...
Nd7 {[%clk 0:00:53.1]} 31. a4 {[%clk 0:02:03.1]} 31... a6 {[%clk 0:00:50.7]} 32.
axb5 {[%clk 0:02:01.1]} 32... axb5 {[%clk 0:00:50.2]} 33. f4 {[%clk 0:01:58.9]}
33... Kd6 {[%clk 0:00:43.6]} 34. Bg2 {[%clk 0:01:51.2]} 34... f6 {[%clk
0:00:40.8]} 35. Ne2 {[%clk 0:01:47.4]} 35... Nb6 {[%clk 0:00:35.9]} 36. f5
{[%clk 0:01:41.2]} 36... Ng5 {[%clk 0:00:28.6]} 37. h4 {[%clk 0:01:34.5]} 37...
Nf7 {[%clk 0:00:27.7]} 38. fxg6 {[%clk 0:01:30.6]} 38... hxg6 {[%clk 0:00:26.6]}
39. g4 {[%clk 0:01:30.3]} 39... Na4 {[%clk 0:00:25.1]} 40. h5 {[%clk 0:01:25.1]}
40... gxh5 {[%clk 0:00:24.1]} 41. gxh5 {[%clk 0:01:25.1]} 41... Ng5 {[%clk
0:00:24]} 42. Bf3 {[%clk 0:01:17.6]} 42... Nb2 {[%clk 0:00:21.9]} 43. Bg4 {[%clk
0:01:12.7]} 43... Ke7 {[%clk 0:00:20.3]} 44. Ng3 {[%clk 0:01:11.6]} 44... Kf7
{[%clk 0:00:18.5]} 45. Nf5 {[%clk 0:01:10.9]} 45... Nd1+ {[%clk 0:00:17.4]} 46.
Bxd1 {[%clk 0:01:09.1]} 1-0

[Event "Betsys MČR v online bleskovém šachu 2021"]
[Site "Chess.com"]
[Date "2021.04.17"]
[Round "3"]
[White "AdaTra"]
[Black "Asmodai5"]
[Result "1-0"]
[WhiteElo "1643"]
[BlackElo "1136"]
[TimeControl "180+1"]
[EndTime "9:26:37 PDT"]
[Termination "Uživatel AdaTra zvítězil na čas"]

1. d4 {[%clk 0:03:00.9]} 1... d5 {[%clk 0:02:57.8]} 2. Bf4 {[%clk 0:03:00.3]}
2... Nc6 {[%clk 0:02:45.1]} 3. e3 {[%clk 0:02:59.5]} 3... e6 {[%clk 0:02:42.4]}
4. c3 {[%clk 0:02:56.7]} 4... Bd6 {[%clk 0:02:32.7]} 5. Nf3 {[%clk 0:02:49.7]}
5... Nf6 {[%clk 0:02:16.8]} 6. Ne5 {[%clk 0:02:43.4]} 6... Bxe5 {[%clk
0:02:06.9]} 7. dxe5 {[%clk 0:02:44.3]} 7... Ne4 {[%clk 0:02:03.6]} 8. Bd3 {[%clk
0:02:30.8]} 8... O-O {[%clk 0:01:53.3]} 9. O-O {[%clk 0:02:28.8]} 9... b6 {[%clk
0:01:44.4]} 10. f3 {[%clk 0:02:14.2]} 10... Nc5 {[%clk 0:01:38.2]} 11. Bc2
{[%clk 0:02:11.6]} 11... Bb7 {[%clk 0:01:37.5]} 12. Nd2 {[%clk 0:02:06.2]} 12...
Qd7 {[%clk 0:01:19.8]} 13. e4 {[%clk 0:02:00.1]} 13... dxe4 {[%clk 0:01:15]} 14.
Nxe4 {[%clk 0:01:59.7]} 14... Qxd1 {[%clk 0:01:10.9]} 15. Raxd1 {[%clk
0:01:58.4]} 15... Nxe4 {[%clk 0:01:09.2]} 16. Bxe4 {[%clk 0:01:59.3]} 16... Rad8
{[%clk 0:00:50.6]} 17. Bg5 {[%clk 0:01:51.4]} 17... f6 {[%clk 0:00:39.8]} 18.
exf6 {[%clk 0:01:48]} 18... gxf6 {[%clk 0:00:36.7]} 19. Rxd8 {[%clk 0:01:46.8]}
19... Nxd8 {[%clk 0:00:30.3]} 20. Bxb7 {[%clk 0:01:26.5]} 20... Nxb7 {[%clk
0:00:30.1]} 21. Be3 {[%clk 0:01:21.8]} 21... Rd8 {[%clk 0:00:27.1]} 22. Re1
{[%clk 0:01:18.4]} 22... Nc5 {[%clk 0:00:24.6]} 23. Bxc5 {[%clk 0:01:17]} 23...
bxc5 {[%clk 0:00:24.3]} 24. Rxe6 {[%clk 0:01:16.7]} 24... Kf7 {[%clk 0:00:23]}
25. Re2 {[%clk 0:01:15.1]} 25... Rd5 {[%clk 0:00:20.9]} 26. Kf2 {[%clk
0:01:14.4]} 26... Kg6 {[%clk 0:00:16.4]} 27. b3 {[%clk 0:01:08.9]} 27... Kf5
{[%clk 0:00:12.2]} 28. Kg3 {[%clk 0:01:06.2]} 28... h5 {[%clk 0:00:10.4]} 29. h4
{[%clk 0:01:03.1]} 29... Kg6 {[%clk 0:00:09.8]} 30. Re7 {[%clk 0:01:01.5]} 30...
Rd2 {[%clk 0:00:05.4]} 31. a4 {[%clk 0:00:54.1]} 31... Rc2 {[%clk 0:00:04.2]}
32. Rxc7 {[%clk 0:00:54.1]} 32... Rxc3 {[%clk 0:00:03.8]} 33. a5 {[%clk
0:00:48.6]} 1-0